bitfinex/quotes_ETHUSD_20210401
["timestamp","ask_amount","ask_price","bid_price","bid_amount"]
[1617294146217,2.55,1940.7,1940.6,27.28405]
[1617294147021,2.55,1940.7,1940.6,4.02]
[1617294147220,12.462343,1940.7,1940.4,3.556]
[1617294147466,15.05,1940.5,1940.4,3.536359]
[1617294147665,10.4,1940.5,1940.1,8.10081]
[1617294147965,0.39,1940.3,1940.1,8.10081]
[1617294148173,10.0,1940.5,1940.1,8.10081]
[1617294148672,10.66,1940.6,1940.1,8.05081]
[1617294149071,0.39,1940.5,1940.1,8.05081]
[1617294149269,3.562643,1940.5,1940.1,8.05081]
[1617294149467,0.41,1940.4,1940.1,8.05081]
[1617294149668,12.83,1940.6,1940.1,11.79081]
[1617294150067,2.83,1940.6,1940.1,19.79081]
[1617294150268,2.55,1940.6,1940.3,5.01]
[1617294150968,2.55,1940.6,1940.1,9.0687]
[1617294151170,0.41,1940.5,1940.3,7.73062]
[1617294151573,12.55,1940.6,1940.3,7.73062]
[1617294152071,2.55,1940.6,1940.3,7.73062]
[1617294152686,2.55,1940.6,1940.3,15.73062]
[1617294152889,2.55,1940.6,1940.3,11.9]
[1617294153086,2.55,1940.6,1940.3,3.9]
[1617294153489,2.55,1940.6,1940.3,11.9]
[1617294153788,2.55,1940.6,1940.4,7.73002]
[1617294154788,5.722643,1940.6,1940.4,7.73002]
[1617294154989,7.64,1940.5,1940.4,7.73002]
[1617294155411,2.74,1940.5,1940.2,10.30749]
[1617294156513,12.143,1940.5,1940.2,10.30749]
[1617294156714,14.693,1940.5,1940.2,10.30749]
[1617294156919,3.49,1940.4,1940.2,10.30749]
[1617294157415,0.4,1940.3,1940.2,10.30749]
[1617294158343,3.572643,1940.3,1940.2,10.30749]
[1617294158553,4.772643,1940.3,1940.1,0.3187]
[1617294158942,28.08,1940.2,1940.1,0.3187]
[1617294159943,26.88,1940.2,1940.1,0.3187]
[1617294161089,10.0,1940.2,1940.1,0.3187]
[1617294161290,15.5,1940.3,1940.1,0.3187]
[1617294161891,22.722643,1940.2,1940.1,0.3187]
[1617294162291,23.132643,1940.2,1940.1,0.3187]
[1617294162493,19.96,1940.2,1940.1,0.3187]
[1617294162691,11.28935638,1940.1,1940.0,10.81907]
[1617294162892,1.28935638,1940.1,1940.0,10.81907]
[1617294163509,10.13165638,1940.1,1940.0,10.81907]
[1617294163713,13.2916548,1940.1,1940.0,0.51]
[1617294164115,15.8416548,1940.1,1940.0,0.51]
[1617294164637,13.50165638,1940.1,1940.0,0.51]
[1617294164812,12.30165638,1940.1,1940.0,0.51]
[1617294165612,12.30165638,1940.1,1940.0,14.06]
[1617294165816,12.30165638,1940.1,1940.0,18.02]
[1617294166016,3.83935638,1940.1,1940.0,39.32942]
[1617294166219,3.83935638,1940.1,1940.0,36.32942]
[1617294166715,3.83935638,1940.1,1940.0,22.77942]
[1617294166915,3.83935638,1940.1,1940.0,22.39942]
[1617294167515,3.83935638,1940.1,1940.0,14.39942]
[1617294167716,3.83935638,1940.1,1940.0,22.39942]
[1617294167915,3.83935638,1940.1,1940.0,14.39942]
[1617294168347,3.83935638,1940.1,1940.0,22.39942]
[1617294168843,3.83935638,1940.1,1940.0,22.79942]
[1617294169444,3.83935638,1940.1,1940.0,22.39942]
[1617294169747,3.83935638,1940.1,1940.0,14.39942]
[1617294170645,3.83935638,1940.1,1940.0,14.80942]
[1617294170846,3.83935638,1940.1,1940.0,22.80942]
[1617294171090,3.83935638,1940.1,1940.0,25.80942]
[1617294171275,3.83935638,1940.1,1940.0,35.01392]
[1617294171477,6.38935638,1940.1,1940.0,35.01392]
[1617294173471,6.38935638,1940.1,1940.0,23.60392]
[1617294173697,6.38935638,1940.1,1940.0,14.39942]
[1617294175198,6.38935638,1940.1,1940.0,27.40942]
[1617294175906,6.38935638,1940.1,1940.0,27.81942]
[1617294176316,6.38935638,1940.1,1940.0,27.40942]
[1617294177114,5.1,1940.1,1940.0,26.12006362]
[1617294177521,5.1,1940.1,1940.0,19.40942]
[1617294177722,5.1,1940.1,1940.0,14.39942]
[1617294178418,5.1,1940.1,1940.0,14.38802513]
[1617294178869,4.66185,1940.1,1940.0,14.38802513]
[1617294179567,4.66185,1940.1,1940.0,27.78802513]
[1617294180275,4.61185,1940.1,1940.0,30.78802513]
[1617294180667,4.61185,1940.1,1940.0,27.78802513]
[1617294181768,4.61185,1940.1,1940.0,27.39802513]
[1617294182771,4.61185,1940.1,1940.0,14.38802513]
[1617294183369,4.61185,1940.1,1940.0,10.80802513]
[1617294185193,5.00185,1940.1,1940.0,10.80802513]
[1617294185994,4.61185,1940.1,1940.0,10.80802513]
[1617294186193,7.16185,1940.1,1940.0,10.80802513]
[1617294187716,11.85782194,1940.1,1940.0,10.80802513]
[1617294188117,11.85782194,1940.1,1940.0,0.49860513]
[1617294188318,20.10782194,1940.1,1940.0,0.49860513]
[1617294188818,11.85782194,1940.1,1940.0,0.49860513]
[1617294189119,10.65782194,1940.1,1940.0,8.23175513]
[1617294189744,10.26782194,1940.1,1940.0,8.23175513]
[1617294190045,7.16185,1940.1,1940.0,8.23175513]
[1617294191645,8.36185,1940.1,1940.0,8.23175513]
[1617294191966,8.75185,1940.1,1940.0,8.23175513]
[1617294192268,7.55185,1940.1,1940.0,8.23175513]
[1617294192666,10.26782194,1940.1,1940.0,8.23175513]
[1617294192872,7.16185,1940.1,1940.0,8.23175513]
[1617294193073,8.36185,1940.1,1940.0,8.23175513]
[1617294193273,7.16185,1940.1,1940.0,8.23175513]
[1617294193769,9.71185,1940.1,1940.0,8.23175513]
[1617294193970,14.41782194,1940.1,1940.0,8.23175513]
[1617294194370,13.21782194,1940.1,1940.0,8.23175513]
[1617294194628,14.41782194,1940.1,1940.0,0.49860513]
[1617294195219,25.56782194,1940.1,1940.0,0.49860513]
[1617294196222,25.56782194,1940.1,1940.0,5.13e-06]
[1617294196423,33.30324194,1940.1,1940.0,5.13e-06]
[1617294196623,27.65324194,1940.1,1940.0,5.13e-06]
[1617294197523,27.65324194,1940.1,1939.7,1.03284012]
[1617294197524,26.73,1939.8,1939.7,1.03284012]
[1617294197729,26.73,1939.8,1939.5,7.73512]
[1617294197730,36.2261,1939.8,1939.5,7.73512]
[1617294197924,23.79113294,1939.6,1939.5,7.73512]
[1617294198128,33.79113294,1939.6,1939.5,7.73512]
[1617294198324,0.38,1939.4,1939.3,7.2187816]
[1617294198529,6.9078,1939.4,1939.3,7.2187816]
[1617294199223,12.4078,1939.4,1939.3,7.2187816]
[1617294199848,12.4078,1939.4,1939.3,14.9547116]
[1617294200047,12.0278,1939.4,1939.3,14.9547116]
[1617294200248,6.5278,1939.4,1939.3,14.9547116]
[1617294201054,9.0778,1939.4,1939.3,14.9547116]
[1617294201452,9.4778,1939.4,1939.3,14.9547116]
[1617294201653,9.0778,1939.4,1939.3,18.7347116]
[1617294202674,3.5382,1939.4,1939.3,24.5847116]
[1617294202877,4.7889,1939.7,1939.3,29.7347116]
[1617294203183,15.21185,1940.1,1939.6,0.39]
[1617294203477,15.49185,1940.1,1939.6,0.39]
[1617294203676,15.49185,1940.1,1939.6,5.4]
[1617294203877,25.49185,1940.1,1939.6,5.4]
[1617294204076,25.49185,1940.1,1939.8,3.86569]
[1617294204277,25.49185,1940.1,1939.9,7.73207]
[1617294204278,19.99185,1940.1,1939.9,7.73207]
[1617294205102,9.94185,1940.1,1939.9,7.73207]
[1617294206004,9.94185,1940.1,1939.9,12.3711472]
[1617294206218,11.14185,1940.1,1940.0,10.3098]
[1617294206519,14.13984616,1940.1,1940.0,10.3098]
[1617294206917,12.93984616,1940.1,1940.0,10.3098]
[1617294207119,9.94185,1940.1,1940.0,10.3098]
[1617294207618,9.66185,1940.1,1940.0,10.3098]
[1617294207842,9.66185,1940.1,1940.0,14.3498]
[1617294208447,12.21185,1940.1,1940.0,14.3498]
[1617294208944,12.21185,1940.1,1940.0,14.7498]
[1617294209142,12.21185,1940.1,1940.0,37.5346]
[1617294209143,7.0581676,1940.1,1940.0,37.5346]
[1617294209446,2.55,1940.5,1940.1,16.9]
[1617294209744,2.55,1940.7,1940.4,7.85]
[1617294209951,1.859,1940.6,1940.4,9.5558]
[1617294210144,1.859,1940.6,1940.5,7.72945]
[1617294210345,1.859,1940.6,1940.5,11.84945]
[1617294210949,0.859,1940.6,1940.5,11.84945]
[1617294211850,0.859,1940.6,1940.5,27.85945]
[1617294212545,2.55,1940.7,1940.6,10.84]
[1617294212745,2.55,1940.7,1940.6,5.04]
[1617294213282,2.55,1940.7,1940.6,8.46490824]
[1617294213486,0.38,1941.4,1940.9,3.86357]
[1617294213682,2.55,1941.5,1940.9,6.86357]
[1617294213882,2.55,1941.5,1940.9,3.0]
[1617294214082,2.55,1941.5,1941.0,3.04520792]
[1617294214283,2.55,1941.5,1941.2,7.72686]
[1617294214888,2.55,1941.5,1941.2,15.72686]
[1617294215184,2.55,1941.5,1941.2,26.21029]
[1617294215385,2.55,1941.5,1941.4,5.01]
[1617294215630,2.55,1941.5,1941.4,13.01]
[1617294215928,4.1,1941.5,1941.4,5.01]
[1617294216532,4.1,1941.5,1941.4,8.04999494]
[1617294216734,4.1,1941.5,1941.4,12.68999494]
[1617294216930,4.1,1941.5,1941.4,9.65]
[1617294217431,4.1,1941.5,1941.4,12.68999494]
[1617294218032,4.1,1941.5,1941.4,9.65]
[1617294218432,4.1,1941.5,1941.4,5.01]
[1617294220032,4.1,1941.5,1941.3,10.72592]
[1617294220333,4.1,1941.5,1941.3,7.72592]
[1617294220854,3.1,1941.5,1941.3,7.72592]
[1617294221055,3.1,1941.5,1941.2,10.72686]
[1617294221857,3.1,1941.5,1941.3,7.72727]
[1617294222057,3.1,1941.5,1941.4,0.39]
[1617294222260,2.85,1941.5,1941.3,11.17727]
[1617294222458,2.85,1941.5,1941.3,10.78727]
[1617294222758,2.85,1941.5,1941.3,18.78727]
[1617294222961,2.85,1941.5,1941.3,10.78727]
[1617294223365,5.4,1941.5,1941.3,18.78727]
[1617294224380,5.4,1941.5,1941.3,23.93757]
[1617294225981,4.4,1941.5,1941.3,23.93757]
[1617294228100,4.4,1941.5,1941.4,5.01]
[1617294228302,4.4,1941.5,1941.4,9.35]
[1617294228930,4.4,1941.5,1941.4,19.6495]
[1617294229628,4.4,1941.5,1941.4,14.6395]
[1617294229927,4.4,1941.5,1941.4,19.6495]
[1617294230727,6.95,1941.5,1941.4,27.6495]
[1617294230930,5.95,1941.5,1941.4,22.6395]
[1617294231129,5.95,1941.5,1941.4,14.6395]
[1617294231948,5.95,1941.5,1941.4,22.6395]
[1617294232353,5.95,1941.5,1941.4,18.2995]
[1617294234077,6.35,1941.5,1941.4,18.2995]
[1617294234481,5.95,1941.5,1941.4,18.2995]
[1617294234876,5.95,1941.5,1941.4,22.5595]
[1617294235477,14.1369,1941.5,1941.4,14.5595]
[1617294235879,13.1369,1941.5,1941.4,10.2995]
[1617294236383,13.5169,1941.5,1941.4,10.2995]
[1617294237001,19.45,1941.3,1941.2,11.59035]
[1617294237409,19.45,1941.3,1941.2,3.86349]
[1617294238202,2.95,1941.3,1941.2,3.86349]
[1617294238604,2.95,1941.3,1941.2,11.5921]
[1617294239648,2.55,1941.3,1941.2,11.5421]
[1617294240948,1.55,1941.3,1941.2,11.5421]
[1617294241247,1.55,1941.3,1941.2,14.8021]
[1617294241648,4.95,1941.5,1941.2,14.8021]
[1617294241864,4.95,1941.5,1941.4,5.01]
[1617294242055,4.95,1941.5,1941.4,12.73606]
[1617294242261,4.95,1941.5,1941.4,20.73606]
[1617294242555,4.95,1941.5,1941.4,24.17606]
[1617294243255,4.95,1941.5,1941.4,11.16606]
[1617294243455,5.34,1941.5,1941.4,7.72606]
[1617294245075,6.54,1941.5,1941.4,7.72606]
[1617294245575,5.34,1941.5,1941.4,7.72606]
[1617294245775,7.89,1941.5,1941.4,7.72606]
[1617294245974,6.89,1941.5,1941.4,7.72606]
[1617294246175,6.5,1941.5,1941.4,7.72606]
[1617294246380,6.5,1941.5,1941.4,11.30606]
[1617294247700,6.2203,1941.5,1941.4,11.30606]
[1617294248601,6.2203,1941.5,1941.4,7.72606]
[1617294249933,6.2203,1941.5,1941.4,6.72606]
[1617294250127,6.2203,1941.5,1941.4,14.72606]
[1617294250729,6.2203,1941.5,1941.4,17.62606]
[1617294250929,5.9113,1941.5,1941.4,17.62606]
[1617294251166,7.5013,1941.5,1941.4,6.72606]
[1617294251363,6.3013,1941.5,1941.4,6.72606]
[1617294251565,6.3013,1941.5,1941.3,14.16445]
[1617294251762,21.25470862,1941.4,1941.3,14.16445]
[1617294253067,22.45470862,1941.4,1941.3,14.16445]
[1617294253366,25.00470862,1941.4,1941.3,14.16445]
[1617294253966,25.00470862,1941.4,1941.2,3.81349]
[1617294254268,7.73,1941.3,1941.2,3.81349]
[1617294254668,1.61,1941.3,1941.2,3.81349]
[1617294255502,0.41,1941.3,1941.2,3.81349]
[1617294256104,0.41,1941.3,1941.2,11.54228]
[1617294256407,15.51470862,1941.4,1941.2,11.54228]
[1617294256608,10.65,1941.3,1941.2,11.54228]
[1617294256804,12.23,1941.3,1941.2,3.81349]
[1617294257211,20.098,1941.3,1941.2,3.81349]
[1617294257908,2.96470862,1941.2,1941.1,10.30442]
[1617294258108,33.25470862,1941.2,1941.1,10.30442]
[1617294258307,33.25470862,1941.2,1941.0,3.86455]
[1617294258308,0.39,1941.1,1941.0,3.86455]
[1617294258613,8.29,1941.1,1940.6,5.15289]
[1617294258810,0.39,1940.8,1940.6,5.15289]
[1617294259009,20.6398,1940.8,1940.1,29.03611]
[1617294259208,20.6398,1940.8,1940.2,0.14]
[1617294259209,3.707,1940.7,1940.2,0.14]
[1617294259408,3.707,1940.7,1940.4,10.30778]
[1617294259409,0.4,1940.6,1940.4,10.30778]
[1617294260231,0.4,1940.6,1940.4,14.17355]
[1617294260633,12.95,1940.6,1940.4,14.17355]
[1617294260833,2.95,1940.6,1940.4,14.17355]
[1617294261634,5.6,1940.5,1940.4,14.17355]
[1617294262035,0.39,1940.5,1940.4,14.17355]
[1617294262235,0.39,1940.5,1940.4,16.2350315]
[1617294263656,15.89,1940.5,1940.4,16.2350315]
[1617294264157,15.89,1940.5,1940.4,14.17355]
[1617294266283,15.89,1940.5,1940.4,3.86577]
[1617294266592,15.89,1940.5,1940.3,3.86581]
[1617294266593,0.4,1940.4,1940.3,3.86581]
[1617294266784,16.4135,1940.5,1940.3,3.86581]
[1617294267184,8.9453,1940.4,1940.3,3.86581]
[1617294267484,11.91000862,1940.4,1940.3,3.86581]
[1617294267687,8.9453,1940.4,1940.3,3.86581]
[1617294268111,11.4953,1940.4,1940.3,11.59803]
[1617294268709,14.46000862,1940.4,1940.3,11.59803]
[1617294269708,11.4953,1940.4,1940.3,11.59803]
[1617294270830,12.6953,1940.4,1940.3,11.59803]
[1617294272333,16.15,1940.3,1940.1,14.1762]
[1617294272534,32.44385951,1940.2,1940.1,14.1762]
[1617294272737,33.64385951,1940.2,1940.1,3.86655]
[1617294273236,33.64385951,1940.2,1939.8,18.30895]
[1617294273457,33.64385951,1940.2,1939.8,10.30895]
[1617294273458,18.7306,1939.9,1939.8,10.30895]
[1617294274057,18.7306,1939.9,1939.8,15.4643]
[1617294274457,7.3306,1939.9,1939.8,15.4643]
[1617294274862,7.7306,1939.9,1939.8,15.4643]
[1617294275259,7.7306,1939.9,1939.8,16.50532978]
[1617294275459,10.2806,1939.9,1939.8,15.4643]
[1617294275665,13.29889394,1939.9,1939.8,5.15535]
[1617294275859,10.2806,1939.9,1939.8,5.15535]
[1617294277584,9.8806,1939.9,1939.8,5.15535]
[1617294278706,9.8806,1939.9,1939.8,12.88833]
[1617294280108,9.8806,1939.9,1939.8,15.88833]
[1617294280109,2.55,1939.9,1939.8,15.88833]
[1617294280308,15.3723,1940.3,1939.8,20.34535]
[1617294280811,15.2723,1940.3,1939.9,2.2017071]
[1617294281007,15.2723,1940.3,1940.0,5.01]
[1617294281231,15.2723,1940.3,1939.9,10.5917071]
[1617294281830,15.2723,1940.3,1939.9,10.2017071]
[1617294282233,15.2723,1940.3,1940.1,7.73089]
[1617294282433,16.4723,1940.3,1940.1,7.73089]
[1617294282934,32.94047648,1940.2,1939.7,10.3108]
[1617294283133,11.71,1939.8,1939.7,10.3108]
[1617294283340,18.128,1939.8,1939.6,5.15539]
[1617294283735,3.1,1939.7,1939.6,5.15539]
[1617294284381,2.1822,1939.9,1939.6,12.88982]
[1617294284974,1.1144,1939.9,1939.6,12.88982]
[1617294285577,0.39,1939.8,1939.6,12.88982]
[1617294285777,6.123,1939.8,1939.6,12.88982]
[1617294286177,6.123,1939.8,1939.7,7.73339]
[1617294287380,6.123,1939.8,1939.7,10.81339]
[1617294287581,6.123,1939.8,1939.7,18.81339]
[1617294287780,6.123,1939.8,1939.7,10.81339]
[1617294287980,6.123,1939.8,1939.7,10.30699]
[1617294288281,6.123,1939.8,1939.7,7.22699]
[1617294288486,6.503,1939.8,1939.7,7.22699]
[1617294289105,6.123,1939.8,1939.7,7.22699]
[1617294290306,8.673,1939.8,1939.7,7.22699]
[1617294290906,8.673,1939.8,1939.7,10.22699]
[1617294291111,8.673,1939.8,1939.7,18.22699]
[1617294291509,9.053,1939.8,1939.7,18.22699]
[1617294291740,8.673,1939.8,1939.7,10.22699]
[1617294293441,8.673,1939.8,1939.7,7.22699]
[1617294295063,17.8223,1940.3,1939.8,6.3]
[1617294295263,17.8223,1940.3,1939.8,3.36]
[1617294295464,17.8223,1940.3,1940.2,0.38]
[1617294296211,17.8223,1940.3,1940.2,8.11135]
[1617294296399,17.8223,1940.3,1940.2,7.73135]
[1617294296600,17.8223,1940.3,1940.2,15.73135]
[1617294296798,17.8223,1940.3,1940.2,10.43135]
[1617294297000,17.8223,1940.3,1940.2,10.33135]
[1617294297803,20.3723,1940.3,1940.2,10.33135]
[1617294298303,20.7723,1940.3,1940.2,7.63135]
[1617294299302,20.3723,1940.3,1940.2,7.63135]
[1617294301829,20.3723,1940.3,1940.2,10.31135]
[1617294302236,20.3723,1940.3,1940.2,18.31135]
[1617294302437,5.1,1940.3,1940.2,21.71135]
[1617294303037,5.1,1940.3,1940.2,21.31135]
[1617294303540,2.55,1940.4,1940.3,8.1]
[1617294303740,2.8,1940.5,1940.4,16.81]
[1617294303944,2.55,1940.6,1940.4,19.81]
[1617294304141,2.55,1940.6,1940.5,23.45]
[1617294304340,2.55,1940.6,1940.5,29.71]
[1617294304540,2.55,1940.6,1940.5,37.43846]
[1617294304863,2.55,1940.6,1940.5,18.99846]
[1617294305263,5.1,1940.6,1940.5,18.99846]
[1617294305465,5.1,1940.6,1940.5,19.39846]
[1617294305764,20.4305,1941.5,1940.7,0.41]
[1617294305765,20.8305,1941.5,1940.7,0.41]
[1617294306066,0.28,1941.3,1940.9,3.86372]
[1617294306263,0.28,1941.3,1940.9,9.01372]
[1617294306469,0.69,1941.3,1940.9,20.87744]
[1617294306666,0.69,1941.3,1940.9,22.9380859]
[1617294306865,0.69,1941.3,1940.9,12.00372]
[1617294307067,0.39,1941.2,1940.9,22.16695]
[1617294307485,0.39,1941.2,1940.9,8.0]
[1617294307786,0.4,1941.1,1940.8,0.14]
[1617294307987,0.687,1941.1,1940.8,0.14]
[1617294308386,0.687,1941.1,1940.8,4.1]
[1617294308687,0.287,1941.1,1940.8,3.96]
[1617294309089,2.55,1941.4,1940.8,3.96]
[1617294309288,0.287,1941.3,1940.8,3.96]
[1617294309787,0.287,1941.3,1940.8,4.1]
[1617294310108,0.287,1941.3,1940.9,2.0606896]
[1617294310411,0.287,1941.3,1940.9,3.86405]
[1617294310814,0.287,1941.3,1940.9,8.87405]
[1617294311009,0.287,1941.3,1941.1,7.72786]
[1617294311220,2.55,1941.4,1941.1,7.72786]
[1617294311418,2.55,1941.4,1941.1,10.42786]
[1617294311620,2.93,1941.4,1941.1,2.7]
[1617294311817,5.93753416,1941.4,1941.1,2.7]
[1617294312118,5.93753416,1941.4,1940.9,8.0]
[1617294312119,0.39,1940.9,1940.4,10.30494]
[1617294312318,0.287,1940.8,1940.4,10.30494]
[1617294312518,0.697,1940.8,1940.4,10.30494]
[1617294312739,3.247,1940.8,1940.4,10.30494]
[1617294312940,3.227,1940.8,1940.4,10.30494]
[1617294313142,2.817,1940.8,1940.4,14.16978]
[1617294313342,2.817,1940.8,1940.4,16.745824]
[1617294313539,2.817,1940.8,1940.4,19.845824]
[1617294313540,2.80944884,1940.8,1940.4,19.845824]
[1617294313740,2.80944884,1940.8,1940.4,14.16978]
[1617294314144,2.80944884,1940.8,1940.5,7.7303]
[1617294314542,2.80944884,1940.8,1940.5,11.0303]
[1617294315560,2.55,1940.8,1940.5,24.0403]
[1617294315862,2.55,1940.8,1940.6,11.7694]
[1617294316364,2.55,1940.8,1940.7,9.86]
[1617294316666,2.55,1940.8,1940.7,15.97]
[1617294319194,1.55,1940.8,1940.7,15.97]
[1617294319396,1.55,1940.8,1940.7,10.96]
[1617294320093,4.1,1940.8,1940.7,10.96]
[1617294320394,4.1,1940.8,1940.7,13.96250906]
[1617294320922,4.1,1940.8,1940.7,31.46250906]
[1617294321319,4.1,1940.8,1940.7,31.86250906]
[1617294321525,4.1,1940.8,1940.7,14.36250906]
[1617294321824,4.1,1940.8,1940.7,13.96250906]
[1617294322021,4.1,1940.8,1940.7,10.96]
[1617294322820,4.1,1940.8,1940.7,15.97]
[1617294323642,4.1,1940.8,1940.7,10.96]
[1617294323946,3.1,1940.8,1940.7,10.96]
[1617294325546,3.1,1940.8,1940.7,8.0]
[1617294326364,3.1,1940.8,1940.6,3.86455]
[1617294326763,3.1,1940.8,1940.7,16.16]
[1617294326974,3.1,1940.8,1940.7,16.17993]
[1617294327170,3.1,1940.8,1940.7,24.17993]
[1617294327566,5.65,1940.8,1940.7,24.17993]
[1617294327766,0.49874,1940.8,1940.7,24.17993]
[1617294328990,6.41568013,1941.4,1940.8,12.85]
[1617294329193,6.41568013,1941.4,1941.0,8.87342]
[1617294329494,6.41568013,1941.4,1941.0,16.87342]
[1617294330389,6.41568013,1941.4,1941.1,4.9004891]
[1617294330591,6.41568013,1941.4,1941.2,8.0]
[1617294331332,6.41568013,1941.4,1941.2,3.86331]
[1617294331535,6.41568013,1941.4,1941.2,7.90331]
[1617294332135,6.41568013,1941.4,1941.3,7.72669]
[1617294332334,6.41568013,1941.4,1941.3,15.72669]
[1617294332537,6.41568013,1941.4,1941.3,32.60783558]
[1617294332736,6.41568013,1941.4,1941.3,36.58783558]
[1617294332937,6.41568013,1941.4,1941.3,37.39413558]
[1617294333138,6.41568013,1941.4,1941.3,38.26333558]
[1617294333139,6.9156384,1941.4,1941.3,38.26333558]
[1617294334043,5.9156384,1941.4,1941.3,38.26333558]
[1617294334243,5.9156384,1941.4,1941.3,40.27929]
[1617294335046,8.4656384,1941.4,1941.3,40.27929]
[1617294335243,8.4656384,1941.4,1941.3,47.27929]
[1617294335444,8.4656384,1941.4,1941.3,40.27929]
[1617294335646,8.4656384,1941.4,1941.3,38.50379]
[1617294338664,8.4656384,1941.4,1941.3,33.50379]
[1617294339092,7.4656384,1941.4,1941.3,33.50379]
[1617294339996,7.4656384,1941.4,1941.3,38.50379]
[1617294342515,10.0156384,1941.4,1941.3,38.50379]
[1617294344264,9.0156384,1941.4,1941.3,38.50379]
[1617294344470,9.0156384,1941.4,1941.3,38.88379]
[1617294344665,9.0156384,1941.4,1941.3,38.50379]
[1617294345468,9.0156384,1941.4,1941.3,33.50379]
[1617294346371,9.0156384,1941.4,1941.3,38.50379]
[1617294346867,9.0156384,1941.4,1941.3,33.50379]
[1617294347068,9.0156384,1941.4,1941.3,11.70669]
[1617294347371,9.0156384,1941.4,1941.3,7.72669]
[1617294348171,9.0156384,1941.4,1941.3,20.72669]
[1617294348571,5.59995827,1941.4,1941.3,20.72669]
[1617294348972,4.98995827,1941.4,1941.3,12.72669]
[1617294349177,13.23835827,1941.4,1941.3,12.72669]
[1617294349374,13.23835827,1941.4,1941.3,7.72669]
[1617294349792,15.78835827,1941.4,1941.3,7.72669]
[1617294352621,15.39835827,1941.4,1941.3,7.72669]
[1617294353419,15.39835827,1941.4,1941.3,15.72669]
[1617294353818,15.39835827,1941.4,1941.3,16.61453487]
[1617294354018,14.39835827,1941.4,1941.3,12.73669]
[1617294354218,14.39835827,1941.4,1941.3,7.72669]
[1617294354418,14.34835827,1941.4,1941.3,7.72669]
[1617294354842,14.34835827,1941.4,1941.3,12.72669]
[1617294356042,14.34835827,1941.4,1941.3,20.72669]
[1617294356255,14.34835827,1941.4,1941.3,24.12669]
[1617294356456,14.34835827,1941.4,1941.3,16.12669]
[1617294356955,14.34835827,1941.4,1941.3,11.12669]
[1617294357150,14.34835827,1941.4,1941.3,16.22669]
[1617294357368,16.89835827,1941.4,1941.3,16.22669]
[1617294357669,17.29835827,1941.4,1941.3,8.22669]
[1617294358469,16.89835827,1941.4,1941.3,8.22669]
[1617294358872,16.89835827,1941.4,1941.3,16.22669]
[1617294359170,15.89835827,1941.4,1941.3,10.96669]
[1617294359870,15.89835827,1941.4,1941.3,18.96669]
[1617294360888,15.89835827,1941.4,1941.3,23.96669]
[1617294361889,15.89835827,1941.4,1941.3,15.96669]
[1617294362089,15.89835827,1941.4,1941.3,13.22669]
[1617294363921,15.89835827,1941.4,1941.3,8.22669]
[1617294364118,14.91835827,1941.4,1941.3,8.22669]
[1617294364415,16.11835827,1941.4,1941.3,8.22669]
[1617294364814,19.06835827,1941.4,1941.3,8.22669]
[1617294365016,17.86835827,1941.4,1941.3,8.22669]
[1617294366347,19.06835827,1941.4,1941.3,8.22669]
[1617294366751,19.06835827,1941.4,1941.3,0.5]
[1617294370694,19.06835827,1941.4,1941.3,8.22835]
[1617294370897,17.86835827,1941.4,1941.3,8.22835]
[1617294372297,20.41835827,1941.4,1941.3,8.22835]
[1617294372703,19.96835827,1941.4,1941.3,8.22835]
[1617294373319,19.96835827,1941.4,1941.3,0.5]
[1617294374023,21.16835827,1941.4,1941.3,0.5]
[1617294374222,19.96835827,1941.4,1941.3,8.22812]
[1617294374423,21.56835827,1941.4,1941.3,0.5]
[1617294375767,21.56835827,1941.4,1941.3,5.5]
[1617294375973,19.96835827,1941.4,1941.3,5.5]
[1617294376172,19.96835827,1941.4,1941.3,0.5]
[1617294376868,19.96835827,1941.4,1941.3,8.22828]
[1617294377071,20.35835827,1941.4,1941.3,8.22828]
[1617294379074,19.35835827,1941.4,1941.3,8.22828]
[1617294379676,21.90835827,1941.4,1941.3,8.22828]
[1617294380277,21.51835827,1941.4,1941.3,8.22828]
[1617294381197,22.71835827,1941.4,1941.3,8.22828]
[1617294381596,23.11835827,1941.4,1941.3,8.22828]
[1617294381996,23.11835827,1941.4,1941.3,0.5]
[1617294382798,21.51835827,1941.4,1941.3,0.5]
[1617294382998,21.03272526,1941.4,1941.3,0.5]
[1617294383399,21.03272526,1941.4,1941.3,8.22813]
[1617294384223,21.23272526,1941.4,1941.3,0.5]
[1617294384424,21.61272526,1941.4,1941.3,0.5]
[1617294385924,29.34316526,1941.4,1941.3,0.5]
[1617294387196,31.89316526,1941.4,1941.3,0.5]
[1617294387387,24.95,1941.3,1940.8,7.73033]
[1617294387588,5.75,1940.9,1940.8,7.73033]
[1617294387789,0.4,1940.9,1940.2,11.37883204]
[1617294388088,0.68,1940.9,1940.2,11.37883204]
[1617294388289,0.9995,1941.0,1940.7,5.0]
[1617294388489,16.8911,1941.1,1940.7,7.68]
[1617294388688,2.90394194,1941.0,1940.7,7.68]
[1617294388888,18.0911,1941.1,1940.7,5.0]
[1617294389093,17.4311,1941.1,1940.7,5.0]
[1617294389290,17.0311,1941.1,1940.7,5.0]
[1617294389488,17.4311,1941.1,1940.7,5.0]